{"text_format":"3","workbook":"xlsx","n_sheets":2,"sheets":["Popis namirnica","Izračuni"],"not_rendered":{"defined_names":4},"read":"whole","date_system":"1900"}

{"sheet":"Popis namirnica","index":0,"n_rows":21,"n_cols":13,"rows_kept":21,"merged":[[0,1,0,11],[0,12,1,12],[1,1,1,11],[4,12,5,12],[7,12,8,12],[10,12,11,12],[13,12,14,12]]}
[{"$nulls":12},{"$f":"Izračuni!M9","v":"MLIJEČNI PROIZVODI UKUPNO"}]
[null," Popis namirnica"]
[null,null,"Gotovo","ARTIKL","TRGOVINA","KATEGORIJA","KOLIČINA","JEDINICA","JEDINIČNA CIJENA","UKUPNO","KOMENTAR",null,{"$f":"Izračuni!L9","v":37}]
[null,null,1,"Naranče","Samoposluga","Voće i povrće",2,"kg",{"v":2.99,"d":"2.99 kn"},{"$f":"IFERROR(Popis[KOLIČINA]*Popis[JEDINIČNA CIJENA],\"\")","v":{"v":5.98,"d":"5.98 kn"}},null,null,{"$f":"Izračuni!M8","v":"VOĆE I POVRĆE UKUPNO"}]
[{"$nulls":3},"Jabuke","Voćnjak","Voće i povrće",3,"kg",{"v":1.99,"d":"1.99 kn"},{"$f":"IFERROR(Popis[KOLIČINA]*Popis[JEDINIČNA CIJENA],\"\")","v":{"v":5.97,"d":"5.97 kn"}},"Kupon",null,{"$f":"Izračuni!L8","v":45}]
[{"$nulls":3},"Banane","Samoposluga","Voće i povrće",1,"svežanj",{"v":3.99,"d":"3.99 kn"},{"$f":"IFERROR(Popis[KOLIČINA]*Popis[JEDINIČNA CIJENA],\"\")","v":{"v":3.99,"d":"3.99 kn"}}]
[{"$nulls":3},"Zelena salata","Tržnica","Voće i povrće",2,"glavica",{"v":2.29,"d":"2.29 kn"},{"$f":"IFERROR(Popis[KOLIČINA]*Popis[JEDINIČNA CIJENA],\"\")","v":{"v":4.58,"d":"4.58 kn"}},null,null,{"$f":"Izračuni!M7","v":"MESNI PROIZVODI UKUPNO"}]
[{"$nulls":3},"Rajčice","Tržnica","Voće i povrće",4,"kg",{"v":3.49,"d":"3.49 kn"},{"$f":"IFERROR(Popis[KOLIČINA]*Popis[JEDINIČNA CIJENA],\"\")","v":{"v":13.96,"d":"13.96 kn"}},null,null,{"$f":"Izračuni!L7","v":80}]
[{"$nulls":3},"Tikvice","Tržnica","Voće i povrće",2,"komad",{"v":1.5,"d":"1.50 kn"},{"$f":"IFERROR(Popis[KOLIČINA]*Popis[JEDINIČNA CIJENA],\"\")","v":{"v":3,"d":"3.00 kn"}}]
[{"$nulls":3},"Celer","Samoposluga","Voće i povrće",2,"svežanj",{"v":1.99,"d":"1.99 kn"},{"$f":"IFERROR(Popis[KOLIČINA]*Popis[JEDINIČNA CIJENA],\"\")","v":{"v":3.98,"d":"3.98 kn"}},null,null,{"$f":"Izračuni!M6","v":"PLODOVI MORA UKUPNO"}]
[{"$nulls":3},"Krastavac","Tržnica","Voće i povrće",1,"kg",{"v":2.29,"d":"2.29 kn"},{"$f":"IFERROR(Popis[KOLIČINA]*Popis[JEDINIČNA CIJENA],\"\")","v":{"v":2.29,"d":"2.29 kn"}},null,null,{"$f":"Izračuni!L6","v":109}]
[{"$nulls":3},"Gljive","Samoposluga","Voće i povrće",0.5,"kg",{"v":2.25,"d":"2.25 kn"},{"$f":"IFERROR(Popis[KOLIČINA]*Popis[JEDINIČNA CIJENA],\"\")","v":{"v":1.125,"d":"1.13 kn"}},"Veliki smeđi šampinjoni"]
[{"$nulls":3},"Mlijeko ","Dostava","Mliječni proizvodi",2,"l",{"v":3.99,"d":"3.99 kn"},{"$f":"IFERROR(Popis[KOLIČINA]*Popis[JEDINIČNA CIJENA],\"\")","v":{"v":7.98,"d":"7.98 kn"}},null,null,{"$f":"Izračuni!M3","v":"OSTALO – UKUPNO"}]
[{"$nulls":3},"Sir","Dostava","Mliječni proizvodi",1,"kg",{"v":9.99,"d":"9.99 kn"},{"$f":"IFERROR(Popis[KOLIČINA]*Popis[JEDINIČNA CIJENA],\"\")","v":{"v":9.99,"d":"9.99 kn"}},"Raznovrsni tvrdi sirevi",null,{"$f":"Izračuni!L3","v":0}]
[{"$nulls":3},"Jaja","Dostava","Mliječni proizvodi",2,"tucet",{"v":3.5,"d":"3.50 kn"},{"$f":"IFERROR(Popis[KOLIČINA]*Popis[JEDINIČNA CIJENA],\"\")","v":{"v":7,"d":"7.00 kn"}}]
[{"$nulls":3},"Svježi sir","Dostava","Mliječni proizvodi",1,"500 g",{"v":3.89,"d":"3.89 kn"},{"$f":"IFERROR(Popis[KOLIČINA]*Popis[JEDINIČNA CIJENA],\"\")","v":{"v":3.89,"d":"3.89 kn"}},null,null,{"$f":"Izračuni!M4","v":"NAMIRNICE – UKUPNO"}]
[{"$nulls":3},"Kiselo vrhnje","Dostava","Mliječni proizvodi",1,"250 g",{"v":2.99,"d":"2.99 kn"},{"$f":"IFERROR(Popis[KOLIČINA]*Popis[JEDINIČNA CIJENA],\"\")","v":{"v":2.99,"d":"2.99 kn"}},null,null,{"$f":"UkupniIznosZaNamirnice","v":271}]
[{"$nulls":3},"Jogurt","Samoposluga","Mliječni proizvodi",1,"500 g",{"v":4.99,"d":"4.99 kn"},{"$f":"IFERROR(Popis[KOLIČINA]*Popis[JEDINIČNA CIJENA],\"\")","v":{"v":4.99,"d":"4.99 kn"}},"Grčki jogurt s medom"]
[{"$nulls":3},"Govedina","Tržnica","Mesni proizvodi",10,"kg",{"v":7.99,"d":"7.99 kn"},{"$f":"IFERROR(Popis[KOLIČINA]*Popis[JEDINIČNA CIJENA],\"\")","v":{"v":79.9,"d":"79.90 kn"}},"Fileti omotani slaninom"]
[{"$nulls":3},"Divlji losos","Ribarnica","Plodovi mora",6,"kg",{"v":8.99,"d":"8.99 kn"},{"$f":"IFERROR(Popis[KOLIČINA]*Popis[JEDINIČNA CIJENA],\"\")","v":{"v":53.94,"d":"53.94 kn"}}]
[{"$nulls":3},"Noge aljaškog kraljevskog raka","Ribarnica","Plodovi mora",5,"kg",{"v":10.99,"d":"10.99 kn"},{"$f":"IFERROR(Popis[KOLIČINA]*Popis[JEDINIČNA CIJENA],\"\")","v":{"v":54.95,"d":"54.95 kn"}}]

{"sheet":"Izračuni","index":1,"n_rows":21,"n_cols":13,"rows_kept":21,"hidden":true}
["*** Ovaj list mora ostati sakriven ***"]
[]
[{"$nulls":10},{"$f":"SUM(Popis[UKUPNO])-SUM(K6:K9)","v":{"v":0,"d":"0.00 kn"}},{"$f":"ROUND(K3,0)","v":{"v":0,"d":"0 kn"}},"OSTALO – UKUPNO"]
[{"$nulls":11},{"$f":"ROUNDUP(SUM(Popis[UKUPNO]),0)","v":{"v":271,"d":"271 kn"}},"NAMIRNICE – UKUPNO"]
[]
[{"$nulls":4},{"$f":"IFERROR(INDEX(Popis[KATEGORIJA],MATCH(,COUNTIF($E$5:E5,Popis[KATEGORIJA]),)),\"\")","v":"Voće i povrće"},{"$f":"SUMIFS(Popis[UKUPNO],Popis[KATEGORIJA],E6)","v":44.875},{"$f":"F6+ROW()/1000000","v":44.875006},{"$f":"LARGE($G$6:$G$21,1)","v":108.890009},{"$f":"MATCH(H6,$G$6:$G$21,0)","v":4},{"$f":"INDEX($E$6:$E$21,$I6)","v":"Plodovi mora"},{"$f":"INDEX($F$6:$F$21,$I6)","v":{"v":108.89,"d":"108.89 kn"}},{"$f":"ROUND(K6,0)","v":{"v":109,"d":"109 kn"}},{"$f":"UPPER(J6) & \" UKUPNO\"","v":"PLODOVI MORA UKUPNO"}]
[{"$nulls":4},{"$f":"IFERROR(INDEX(Popis[KATEGORIJA],MATCH(,COUNTIF($E$5:E6,Popis[KATEGORIJA]),)),\"\")","v":"Mliječni proizvodi"},{"$f":"SUMIFS(Popis[UKUPNO],Popis[KATEGORIJA],E7)","v":36.84},{"$f":"F7+ROW()/1000000","v":36.840007},{"$f":"LARGE($G$6:$G$21,2)","v":79.900008},{"$f":"MATCH(H7,$G$6:$G$21,0)","v":3},{"$f":"INDEX($E$6:$E$21,$I7)","v":"Mesni proizvodi"},{"$f":"INDEX($F$6:$F$21,$I7)","v":{"v":79.9,"d":"79.90 kn"}},{"$f":"ROUND(K7,0)","v":{"v":80,"d":"80 kn"}},{"$f":"UPPER(J7) & \" UKUPNO\"","v":"MESNI PROIZVODI UKUPNO"}]
[{"$nulls":4},{"$f":"IFERROR(INDEX(Popis[KATEGORIJA],MATCH(,COUNTIF($E$5:E7,Popis[KATEGORIJA]),)),\"\")","v":"Mesni proizvodi"},{"$f":"SUMIFS(Popis[UKUPNO],Popis[KATEGORIJA],E8)","v":79.9},79.900008,{"$f":"LARGE($G$6:$G$21,3)","v":44.875006},{"$f":"MATCH(H8,$G$6:$G$21,0)","v":1},{"$f":"INDEX($E$6:$E$21,$I8)","v":"Voće i povrće"},{"$f":"INDEX($F$6:$F$21,$I8)","v":{"v":44.875,"d":"44.88 kn"}},{"$f":"ROUND(K8,0)","v":{"v":45,"d":"45 kn"}},{"$f":"UPPER(J8) & \" UKUPNO\"","v":"VOĆE I POVRĆE UKUPNO"}]
[{"$nulls":4},{"$f":"IFERROR(INDEX(Popis[KATEGORIJA],MATCH(,COUNTIF($E$5:E8,Popis[KATEGORIJA]),)),\"\")","v":"Plodovi mora"},{"$f":"SUMIFS(Popis[UKUPNO],Popis[KATEGORIJA],E9)","v":108.89},108.890009,{"$f":"LARGE($G$6:$G$21,4)","v":36.840007},{"$f":"MATCH(H9,$G$6:$G$21,0)","v":2},{"$f":"INDEX($E$6:$E$21,$I9)","v":"Mliječni proizvodi"},{"$f":"INDEX($F$6:$F$21,$I9)","v":{"v":36.84,"d":"36.84 kn"}},{"$f":"ROUND(K9,0)","v":{"v":37,"d":"37 kn"}},{"$f":"UPPER(J9) & \" UKUPNO\"","v":"MLIJEČNI PROIZVODI UKUPNO"}]
[{"$nulls":4},{"$f":"IFERROR(INDEX(Popis[KATEGORIJA],MATCH(,COUNTIF($E$5:E9,Popis[KATEGORIJA]),)),\"\")","v":""},{"$f":"SUMIFS(Popis[UKUPNO],Popis[KATEGORIJA],E10)","v":0},1e-05]
[{"$nulls":4},{"$f":"IFERROR(INDEX(Popis[KATEGORIJA],MATCH(,COUNTIF($E$5:E10,Popis[KATEGORIJA]),)),\"\")","v":""},{"$f":"SUMIFS(Popis[UKUPNO],Popis[KATEGORIJA],E11)","v":0},1.1E-5]
[{"$nulls":4},{"$f":"IFERROR(INDEX(Popis[KATEGORIJA],MATCH(,COUNTIF($E$5:E11,Popis[KATEGORIJA]),)),\"\")","v":""},{"$f":"SUMIFS(Popis[UKUPNO],Popis[KATEGORIJA],E12)","v":0},1.2E-5]
[{"$nulls":4},{"$f":"IFERROR(INDEX(Popis[KATEGORIJA],MATCH(,COUNTIF($E$5:E12,Popis[KATEGORIJA]),)),\"\")","v":""},{"$f":"SUMIFS(Popis[UKUPNO],Popis[KATEGORIJA],E13)","v":0},1.3e-05]
[{"$nulls":4},{"$f":"IFERROR(INDEX(Popis[KATEGORIJA],MATCH(,COUNTIF($E$5:E13,Popis[KATEGORIJA]),)),\"\")","v":""},{"$f":"SUMIFS(Popis[UKUPNO],Popis[KATEGORIJA],E14)","v":0},1.4E-5]
[{"$nulls":4},{"$f":"IFERROR(INDEX(Popis[KATEGORIJA],MATCH(,COUNTIF($E$5:E14,Popis[KATEGORIJA]),)),\"\")","v":""},{"$f":"SUMIFS(Popis[UKUPNO],Popis[KATEGORIJA],E15)","v":0},1.5E-5]
[{"$nulls":4},{"$f":"IFERROR(INDEX(Popis[KATEGORIJA],MATCH(,COUNTIF($E$5:E15,Popis[KATEGORIJA]),)),\"\")","v":""},{"$f":"SUMIFS(Popis[UKUPNO],Popis[KATEGORIJA],E16)","v":0},1.6e-05]
[{"$nulls":4},{"$f":"IFERROR(INDEX(Popis[KATEGORIJA],MATCH(,COUNTIF($E$5:E16,Popis[KATEGORIJA]),)),\"\")","v":""},{"$f":"SUMIFS(Popis[UKUPNO],Popis[KATEGORIJA],E17)","v":0},1.7E-5]
[{"$nulls":4},{"$f":"IFERROR(INDEX(Popis[KATEGORIJA],MATCH(,COUNTIF($E$5:E17,Popis[KATEGORIJA]),)),\"\")","v":""},{"$f":"SUMIFS(Popis[UKUPNO],Popis[KATEGORIJA],E18)","v":0},1.8E-5]
[{"$nulls":4},{"$f":"IFERROR(INDEX(Popis[KATEGORIJA],MATCH(,COUNTIF($E$5:E18,Popis[KATEGORIJA]),)),\"\")","v":""},{"$f":"SUMIFS(Popis[UKUPNO],Popis[KATEGORIJA],E19)","v":0},1.9e-05]
[{"$nulls":4},{"$f":"IFERROR(INDEX(Popis[KATEGORIJA],MATCH(,COUNTIF($E$5:E19,Popis[KATEGORIJA]),)),\"\")","v":""},{"$f":"SUMIFS(Popis[UKUPNO],Popis[KATEGORIJA],E20)","v":0},2e-05]
[{"$nulls":4},{"$f":"IFERROR(INDEX(Popis[KATEGORIJA],MATCH(,COUNTIF($E$5:E20,Popis[KATEGORIJA]),)),\"\")","v":""},{"$f":"SUMIFS(Popis[UKUPNO],Popis[KATEGORIJA],E21)","v":0},2.1e-05]